Cogmind - Beta 13 X2 --- EXPLORER MODE // 2024.02.01 @ 16:12:30 // Winter2019/RPGLIKE Player: MOLDE CANNON Result: Destroyed by as-96479 with Assembled Focal Cannon Performance ------------- Evolutions (3) 1500 Regions Visited (9) 1800 Robots Destroyed (200) 1000 Value Destroyed (7721) 7721 Prototype IDs (61) 1220 Alien Tech Used (1) 200 Bonus (1711) 1711 TOTAL SCORE: 15152 Bonus ------- High Alert Combat Kills 499 Follower Combat Kills 40 Entered Garrisons 200 Met Imprinter 300 Destroyed Z-Imprinter 1000 Friendly Fire -328 Cogmind --------- Core Integrity 0/1150 Matter 176/300 Energy 514/550 System Corruption 0% Temperature Cool (4) Movement Rolling (115) Ox1 Location -7/Deep Caves Parts ------- > --- POWER (2+1) ------ Cold Fusion Reactor Cold Fusion Reactor (+) Enhanced Fission Core > --- PROPULSION (3+2) - Compact Wheel (+) Armored Huge Wheel Armored Huge Wheel (+) > --- UTILITY (11+2) --- Experimental Signal Interpreter Advanced Terrain Scanner Transport Network Coupler Weapon Cycler Advanced Shield Generator Hacking Suite (+) Makeshift Hacking Suite Advanced System Shield Long-range Tractor Beam Bomb Factory No. 2 Rainbow Chip Rainbow Chip (+) > --- WEAPON (4) ------- Zionite Phaser-S Centrium Greatsword CR-A16's Pointy Stick > --- INVENTORY (5) ---- Zionite Biocell (600) Encrypted Comm Array Improved Transmission Jammer Mobile Refinery Mk. CCLXVII Rocket Array Peak State ------------ > --- POWER ------------ Cold Fusion Reactor Cold Fusion Reactor Enhanced Fission Core > --- PROPULSION ------- Compact Wheel Armored Huge Wheel Armored Huge Wheel > --- UTILITY ---------- Experimental Signal Interpreter Advanced Terrain Scanner Transport Network Coupler Encrypted Comm Array Advanced Shield Generator Hacking Suite Makeshift Hacking Suite Advanced System Shield Mobile Refinery Mk. CCLXVII Bomb Factory No. 2 Rainbow Chip Rainbow Chip > --- WEAPON ----------- Cooled Plasma Cannon Multitool Centrium Greatsword CR-A16's Pointy Stick > --- INVENTORY -------- Weapon Cycler Improved Transmission Jammer Long-range Tractor Beam Rocket Array [Rating: 147] Favorites ----------- Power Cold Fusion Reactor Engine Ion Engine Power Core Enhanced Fission Core Reactor Cold Fusion Reactor Propulsion Armored Huge Wheel Wheel Armored Huge Wheel Utility Rainbow Chip Device Improved Terrain Scanner Storage Zionite Biocell Processor Rainbow Chip Hackware Hacking Suite Protection Light Armor Plating Weapon Multitool Energy Gun Zionite Phaser-S Energy Cannon Cooled Plasma Cannon Ballistic Gun KE Penetrator Ballistic Cannon Improved Light Cannon Special Weapon Multitool Slashing Weapon Centrium Greatsword Piercing Weapon CR-A16's Pointy Stick Special Melee Weapon Improved Datajack Build | -11 -10 -10 -8 -8 -7 -7 -7 -7 -7 ------- Run | Yrd Mat Sub Mat Gar Fac Low Low Zio Dee Slots Evolved 15 | 6 . . 4 2 3 . . . . Power 1 | . . . . . 1 . . . . Propulsion 2 | 1 . . . . 1 . . . . Utility 10 | 4 . . 4 1 1 . . . . Weapon 2 | 1 . . . 1 . . . . . Parts Attached 101 | 10 7 3 14 8 26 2 5 5 21 Power 10 | 1 . . 1 1 5 . . . 2 Engine 2 | 1 . . 1 . . . . . . Core 4 | . . . . 1 2 . . . 1 Reactor 4 | . . . . . 3 . . . 1 Propulsion 9 | 2 2 . . 2 3 . . . . Treads . | . . . . . . . . . . Leg . | . . . . . . . . . . Wheel 9 | 2 2 . . 2 3 . . . . Hover . | . . . . . . . . . . Flight . | . . . . . . . . . . Utility 58 | 5 3 2 10 3 11 2 3 4 15 Device 33 | 1 2 . 5 2 6 2 2 3 10 Storage 1 | . . . . . . . . . 1 Processor 9 | 2 1 2 1 . 3 . . . . Hackware 4 | . . . 2 . 1 . . 1 . Protection 11 | 2 . . 2 1 1 . 1 . 4 Artifact . | . . . . . . . . . . Weapon 24 | 2 2 1 3 2 7 . 2 1 4 Energy Gun 4 | . . . . . 1 . . . 3 Energy Cannon 3 | . . . . 1 1 . . . 1 Ballistic Gun 5 | 2 . . . 1 1 . 1 . . Ballistic Cannon 5 | . 2 . 2 . 1 . . . . Launcher . | . . . . . . . . . . Special Weapon 2 | . . 1 1 . . . . . . Impact Weapon . | . . . . . . . . . . Slashing Weapon 2 | . . . . . 1 . 1 . . Piercing Weapon 1 | . . . . . . . . 1 . Special Melee Weapon 2 | . . . . . 2 . . . . Unidentified Prototypes 23 | . . 1 . . 7 . 1 3 11 Parts Lost 6 | . . . 2 . 1 . 1 . 2 Power 1 | . . . . . 1 . . . . Propulsion . | . . . . . . . . . . Utility 3 | . . . 1 . . . 1 . 1 Weapon 2 | . . . 1 . . . . . 1 Highest Loss Streak 1 | . . . 1 . 1 . 1 . 1 To Critical Strikes . | . . . . . . . . . . Average Slot Usage (%) 84 | . 100 73 74 84 87 88 87 85 83 Engine 2 | . 10 6 4 3 . . . . . Core 2 | . . . . . 4 4 3 3 3 Reactor 3 | . . . . . 1 8 7 7 7 Wheel 12 | . 20 12 10 13 12 12 11 11 11 Device 17 | . 24 14 13 19 19 16 15 16 17 Processor 16 | . 10 14 18 18 16 20 19 17 15 Hackware 8 | . . . 6 8 11 12 11 11 11 Protection 4 | . 15 6 2 4 4 4 3 1 . Energy Cannon 1 | . . . . . 4 4 3 3 2 Ballistic Cannon 5 | . 19 12 10 8 3 . . . . Special Weapon 3 | . . 4 7 4 4 4 3 3 1 Slashing Weapon 1 | . . . . . . 4 4 4 3 Naked Turns . | . . . . . . . . . . Heaviest Build 97 | 13 20 20 31 59 82 70 72 96 97 Greatest Support 72 | 26 26 24 24 44 72 72 72 72 72 Greatest Overweight (x) 4 | 4 . . 1 2 2 . . 1 1 Average Overweight (x) . | 2 . . . . . . . . . Largest Inventory Capacity 5 | 2 3 3 4 4 4 4 4 4 5 Average Capacity 3 | 1 2 3 3 4 4 4 4 4 4 Most Carried 5 | 1 3 3 4 4 4 4 4 4 5 Average Carried 3 | . 2 2 3 3 3 3 3 3 3 Final Capacity 5 | 2 3 3 4 4 4 4 4 4 5 Final Carried 5 | 1 3 3 4 4 4 4 4 4 5 Class Distribution -------------------- 49% | Wizard-Gladiator 28% | Hacker-Skirmisher 11% | Hacker-Mutant 9% | Wizard-Skirmisher Dominant Class ---------------- Hacker-Mutant | -10/Materials Hacker-Skirmisher | -10/Subcaves Hacker-Skirmisher | -8/Materials Hacker-Skirmisher | -8/Garrison Wizard-Skirmisher | -7/Factory Wizard-Gladiator | -7/Lower Caves Wizard-Gladiator | -7/Lower Caves Wizard-Gladiator | -7/Zion Wizard-Gladiator | -7/Deep Caves Resources | -11 -10 -10 -8 -8 -7 -7 -7 -7 -7 ----------- Run | Yrd Mat Sub Mat Gar Fac Low Low Zio Dee Matter Collected 7222 | 329 742 650 899 1336 1008 50 55 55 2098 Remotely 4426 | . 362 637 899 1336 914 50 55 5 168 Salvage Created 6025 | 120 722 260 910 661 1669 294 869 . 520 Parts 396 | 6 43 12 69 61 96 15 46 . 48 Haulers Intercepted 11 | . 2 . 5 . 4 . . . . Recyclers Shooed . | . . . . . . . . . . Parts Field Recycled . | . . . . . . . . . . Retrieved Matter . | . . . . . . . . . . Parts Self-Destructed . | . . . . . . . . . . Prevented . | . . . . . . . . . . Kills | -11 -10 -10 -8 -8 -7 -7 -7 -7 -7 ------- Run | Yrd Mat Sub Mat Gar Fac Low Low Zio Dee Combat Hostiles Destroyed 173 | . 22 16 28 34 30 9 20 . 14 Melee 30 | . . . . . 2 . 20 . 8 Guns 18 | . . . . 2 11 . . . 5 Cannons 122 | . 22 15 28 32 17 7 . . 1 Classes Destroyed 25 | 3 5 4 3 5 2 . 1 . 2 Worker 5 | 1 2 . 1 . 1 . . . . Builder 3 | . 2 . . . 1 . . . . Tunneler 2 | 1 . . . . 1 . . . . Hauler 11 | . 2 . 5 . 4 . . . . Recycler 2 | 1 . . . . 1 . . . . Mechanic 1 | . 1 . . . . . . . . Operator 1 | . . . 1 . . . . . . Turret 2 | . . 2 . . . . . . . Watcher 3 | . 2 . 1 . . . . . . Swarmer 45 | . . 4 8 18 4 3 8 . . Grunt 59 | . 22 . 11 6 11 1 8 . . Brawler 2 | . . . . 1 1 . . . . Duelist 2 | . . . 1 . . 1 . . . Protector 1 | . . . . . 1 . . . . Sentry 16 | . . . 8 1 5 . 2 . . Specialist 4 | . . . . 1 3 . . . . Hunter 5 | . . . . 4 1 . . . . Programmer 6 | . . . . 3 3 . . . . Heavy 2 | . . . . . 2 . . . . Behemoth 2 | . . . . 1 . . 1 . . Artisan 1 | . . 1 . . . . . . . Subdweller 12 | . . 12 . . . . . . . Z-Light 8 | . . . . . . . . . 8 Assembled 5 | . . . . . . . . . 5 Thug 1 | . . . . . . 1 . . . Butcher 3 | . . . . . . 3 . . . Mutant 1 | . . . . . . . 1 . . Best Kill Streak 7 | 2 6 6 5 4 7 4 5 . 5 Combat Bots Only 7 | . 6 4 4 4 7 4 5 . 5 Max Kills in Single Turn 2 | 1 2 2 2 1 2 1 1 . 1 Gunslinging . | . . . . . . . . . . Exploded . | . . . . . . . . . . Melee 1 | . . . . . 1 . 1 . 1 Uniques/NPCs Destroyed 1 | . . . . . . . . . 1 Z-Imprinter (-7/Deep Caves) Combat | -11 -10 -10 -8 -8 -7 -7 -7 -7 -7 -------- Run | Yrd Mat Sub Mat Gar Fac Low Low Zio Dee Hostile Shots Fired 1019 | . 29 99 86 150 283 24 138 . 210 Missed 290 | . 10 31 29 31 103 4 41 . 41 Damage Taken 7804 | . 177 890 479 1013 1592 217 629 . 2807 Core 5513 | . 120 628 361 708 1047 115 420 . 2114 Absorbed by Shields 2053 | . . . . 109 564 81 252 . 1047 Redirected to Core 4684 | . 79 563 289 595 860 115 407 . 1776 Redirected to Shielding 15 | . 15 . . . . . . . . Ignored by Resistances 6041 | . 110 539 303 752 1418 171 549 . 2199 Core Remaining (%) 82 | 100 . 47 . 100 . . . . . Volleys Fired 473 | 9 70 77 70 100 82 29 . . 36 Largest 3 | 2 2 3 2 3 3 1 . . 1 Hottest 199 | 40 78 108 96 162 199 105 . . 60 Shots Fired 876 | 18 140 153 139 194 167 29 . . 36 Gun 91 | 18 . . . 2 56 . . . 15 Cannon 723 | . 140 150 112 184 111 26 . . . Launcher . | . . . . . . . . . . Special 62 | . . 3 27 8 . 3 . . 21 Kinetic 733 | 18 140 150 112 184 129 . . . . Thermal 97 | . . 3 27 8 9 29 . . 21 Explosive . | . . . . . . . . . . Electromagnetic 31 | . . . . 2 29 . . . . Phasic 15 | . . . . . . . . . 15 Robot Hit Streak 54 | 10 23 54 23 26 22 30 . . 10 Robot Miss Streak 2 | 2 2 1 2 1 2 1 . . 2 Penetration Max 1 | . . . . . 1 . . . . Secondary Targets . | . . . . . . . . . . Shots Hit Robots 703 | 12 65 90 108 121 155 28 45 . 79 Core Hits 293 | 5 34 29 58 49 62 12 22 . 22 Critical Kills 2 | . . . . . 1 1 . . . Critical Parts Destroyed 2 | . . . . . 2 . . . . Critical Strikes 49 | . 3 4 3 7 12 1 15 . 4 Burn 3 | . . . . . 3 . . . . Meltdown 1 | . . . . . . 1 . . . Destroy 4 | . . . . . 4 . . . . Blast 21 | . 3 4 3 7 4 . . . . Corrupt 1 | . . . . . 1 . . . . Sever 17 | . . . . . . . 15 . 2 Impale 1 | . . . . . . . . . 1 Intensify 1 | . . . . . . . . . 1 Melee Attacks 151 | . . . . . 21 . 49 14 67 Impact . | . . . . . . . . . . Slashing 129 | . . . . . 21 . 49 12 47 Piercing 22 | . . . . . . . . 2 20 Sneak Attacks 1 | . . . . . 1 . . . . Combat Hostiles . | . . . . . . . . . . Follow-up Attacks . | . . . . . . . . . . Damage Inflicted 20898 | 118 1466 1755 2044 3200 4501 985 3158 . 3671 Guns 1948 | 118 . . . 51 1350 . . . 429 Cannons 11392 | . 1466 1755 1884 3093 2225 969 . . . Explosions . | . . . . . . . . . . Melee 7214 | . . . . . 926 . 3158 . 3130 Ramming . | . . . . . . . . . . Kinetic 11352 | 118 1466 1755 1884 3144 2985 . . . . Thermal 1521 | . . . 160 56 208 985 . . 112 Explosive . | . . . . . . . . . . Electromagnetic 382 | . . . . . 382 . . . . Impact . | . . . . . . . . . . Slashing 6905 | . . . . . 926 . 3158 . 2821 Piercing 309 | . . . . . . . . . 309 Phasic 429 | . . . . . . . . . 429 Highest Corruption . | . . . . . . . . . . Average Corruption . | . . . . . . . . . . Corruption Purged . | . . . . . . . . . . Corruption Blocked 2 | . . . . . 2 . . . . Overload Shots 5 | . . . . . . 5 . . . Effects 2 | . . . . . . 2 . . . Energy Bleed 1 | . . . . . . 1 . . . Short Circuit 1 | . . . . . . 1 . . . Overflow Damage 518 | . 5 4 23 67 47 61 74 . 237 Projectiles 202 | . 5 4 23 67 39 61 . . 3 Explosions . | . . . . . . . . . . Melee 316 | . . . . . 8 . 74 . 234 Knockbacks 77 | . 13 13 12 25 14 . . . . Impact . | . . . . . . . . . . Kinetic 73 | . 13 13 10 23 14 . . . . Secondary 4 | . . . 2 2 . . . . . Self-Inflicted Damage 45 | . 45 . . . . . . . . Shots 1 | . 1 . . . . . . . . Rammed . | . . . . . . . . . . Targets Rammed . | . . . . . . . . . . Kicked . | . . . . . . . . . . Crushed . | . . . . . . . . . . Highest Temperature 540 | 12 307 20 297 540 327 128 119 . 38 Average Temperature 78 | 5 63 9 83 143 79 59 61 . 18 Received Heat Transfer 2667 | . 117 216 387 240 446 43 378 . 840 Effects 7 | . 1 . . 2 4 . . . . Shutdowns 1 | . . . . 1 . . . . . Energy Bleed 1 | . 1 . . . . . . . . Interference 4 | . . . . . 4 . . . . Short Circuit 1 | . . . . 1 . . . . . Siege Activations . | . . . . . . . . . . Robots Corrupted . | . . . . . . . . . . Combat Hostiles . | . . . . . . . . . . Parts Fried 6 | . . . . . 3 . . . 3 Impact Corruptions . | . . . . . . . . . . Robots Melted 2 | . . . . . . 2 . . . Combat Hostiles 2 | . . . . . . 2 . . . Parts Melted 6 | . . . 2 . 1 3 . . . Heat Transferred 2877 | . . . 575 200 531 1475 . . 96 Parts Sabotaged . | . . . . . . . . . . Parts Stolen . | . . . . . . . . . . Parts Stripped . | . . . . . . . . . . Power Chain Reactions . | . . . . . . . . . . Missiles Intercepted . | . . . . . . . . . . Alert | -11 -10 -10 -8 -8 -7 -7 -7 -7 -7 ------- Run | Yrd Mat Sub Mat Gar Fac Low Low Zio Dee Peak Influence 1288 | 15 491 . 402 1288 658 . . . . Initial 502 | . 7 . . 50 502 . . . . Average 334 | 3 226 . 217 719 248 . . . . Maximum Alert Level 4 | . 2 . 2 4 2 . . . . Low Security (%) 44 | 100 48 . 49 12 55 . . . . Level 1 26 | . 43 . 45 16 13 . . . . Level 2 18 | . 7 . 4 23 30 . . . . Level 3 3 | . . . . 17 . . . . . Level 4 6 | . . . . 29 . . . . . Level 5 . | . . . . . . . . . . High Security . | . . . . . . . . . . Max Security . | . . . . . . . . . . Squads Dispatched 18 | . 8 . 3 . 7 . . . . Investigation 11 | . 8 . 2 . 1 . . . . Extermination 2 | . . . . . 2 . . . . Reinforcement 4 | . . . 1 . 3 . . . . Assault . | . . . . . . . . . . Garrison 1 | . . . . . 1 . . . . Intercept . | . . . . . . . . . . Searches Triggered . | . . . . . . . . . . Construction Impeded 1 | . . . . . 1 . . . . Haulers Reinforced . | . . . . . . . . . . Active Scanning Responses . | . . . . . . . . . . Cargo Convoy Interrupts 1 | . . . . . 1 . . . . Stealth | -11 -10 -10 -8 -8 -7 -7 -7 -7 -7 --------- Run | Yrd Mat Sub Mat Gar Fac Low Low Zio Dee Distress Signals 5 | . 1 . 2 . 2 . . . . Communications Jammed 25 | . . . . . 25 . . . . Distress Signals 4 | . . . . . 4 . . . . Times Spotted 238 | . 31 32 37 39 45 9 28 . 17 Peak Tracking Total 8 | . 8 6 3 5 6 3 6 . 5 Tactical Retreats 16 | . . 2 1 6 . . 6 . 1 Traps | -11 -10 -10 -8 -8 -7 -7 -7 -7 -7 ------- Run | Yrd Mat Sub Mat Gar Fac Low Low Zio Dee Traps Triggered 9 | . . . . 5 4 . . . . Indirectly . | . . . . . . . . . . Trap Hack Attempts 7 | . . . . . 7 . . . . Triggered . | . . . . . . . . . . Disarmed . | . . . . . . . . . . Reprogrammed 23 | . 13 . 9 . 1 . . . . Reused 17 | . 5 . . . 3 . . . 9 Traps Extracted 9 | . 5 . 4 . . . . . . Installed 37 | . . . . . 4 . . . 33 Triggered 8 | . 5 . . . 3 . . . . Fabricated Traps 36 | . . . . . . . . . 36 Most Traps Carried 4 | . 4 4 4 4 4 . . . 4 Machines | -11 -10 -10 -8 -8 -7 -7 -7 -7 -7 ---------- Run | Yrd Mat Sub Mat Gar Fac Low Low Zio Dee Machines Disabled 22 | . 6 2 1 6 . . 2 5 . Max in Single Turn 1 | . 1 1 1 1 . . 1 1 . Garrison Access 3 | . . . . . 3 . . . . Garrison Relay 5 | . . . . 5 . . . . . Machines Repaired . | . . . . . . . . . . Machines Dismantled . | . . . . . . . . . . Machines Sabotaged . | . . . . . . . . . . Overloaded Fab Kills . | . . . . . . . . . . Hacking | -11 -10 -10 -8 -8 -7 -7 -7 -7 -7 --------- Run | Yrd Mat Sub Mat Gar Fac Low Low Zio Dee Machines Accessed 46 | . 11 1 13 1 18 1 1 . . Terminals 30 | . 8 . 10 1 10 . 1 . . Fabricators 1 | . . . . . 1 . . . . Repair Stations 1 | . 1 . . . . . . . . Recycling Units 7 | . 2 . 2 . 3 . . . . Scanalyzers 1 | . . . . . 1 . . . . Garrison Access 4 | . . . 1 . 3 . . . . Total Hacks 205 | . 47 9 54 4 86 1 4 . . Successful 171 | . 35 9 45 4 73 1 4 . . Failed 34 | . 12 . 9 . 13 . . . . Catastrophic 1 | . . . . . 1 . . . . Database Lockouts . | . . . . . . . . . . Manual 124 | . 33 . 43 3 45 . . . . Terminals 164 | . 41 . 49 4 66 . 4 . . Fabricators 9 | . . . . . 9 . . . . Repair Stations 1 | . 1 . . . . . . . . Recycling Units 14 | . 5 . 4 . 5 . . . . Scanalyzers 2 | . . . . . 2 . . . . Garrison Access 5 | . . . 1 . 4 . . . . Terminal Hacks 112 | . 23 9 31 3 41 1 4 . . Record 12 | . . 8 . . . . 4 . . Part Schematic 22 | . . . 4 1 17 . . . . Robot Schematic 2 | . 1 . 1 . . . . . . Robot Analysis 8 | . 3 . 2 . 3 . . . . Prototype ID Bank 30 | . 9 . 17 . 4 . . . . Open Door 1 | . . . . . . 1 . . . Open DSF 1 | . . . . . 1 . . . . Level Access Points 2 | . . . 1 . 1 . . . . Branch Access Points 3 | . 1 . 1 . 1 . . . . Emergency Access Points 3 | . 1 . . 1 1 . . . . Machine Index 2 | . . . 1 . 1 . . . . Terminal Index 1 | . . . 1 . . . . . . Alert Level 1 | . . . . . 1 . . . . Unreport Threat 2 | . . . . . 2 . . . . Locate Traps 7 | . 3 . 1 . 3 . . . . Reprogram Traps 5 | . 3 . 2 . . . . . . Hauler Manifests 1 | . . . . . 1 . . . . Registered Components 1 | . . . . . 1 . . . . Zone Layout 7 | . 2 . . 1 4 . . . . Derelict Proto ID Bank 1 | . . 1 . . . . . . . Fabricator Hacks 8 | . . . . . 8 . . . . Load Schematic 4 | . . . . . 4 . . . . Build 4 | . . . . . 4 . . . . Repair Station Hacks . | . . . . . . . . . . Recycling Unit Hacks 8 | . 3 . 2 . 3 . . . . Report Inventory 7 | . 2 . 2 . 3 . . . . Retrieve Matter 1 | . 1 . . . . . . . . Scanalyzer 2 | . . . . . 2 . . . . Insert Component 1 | . . . . . 1 . . . . Analyze 1 | . . . . . 1 . . . . Garrison Access Hacks 4 | . . . 1 . 3 . . . . Unlock Access 1 | . . . 1 . . . . . . Seal Access 3 | . . . . . 3 . . . . Unauthorized Hacks 37 | . 9 . 11 1 16 . . . . Terminals 29 | . 6 . 9 1 13 . . . . Track 9 | . 1 . 3 1 4 . . . . Assimilate 1 | . . . 1 . . . . . . Botnet 12 | . 4 . 4 . 4 . . . . Disrupt 4 | . . . . . 4 . . . . Operators 3 | . 1 . 1 . 1 . . . . Fabricators 1 | . . . . . 1 . . . . Prioritize 1 | . . . . . 1 . . . . Repair Stations 1 | . 1 . . . . . . . . Mechanics 1 | . 1 . . . . . . . . Recycling Units 6 | . 2 . 2 . 2 . . . . Reject 1 | . . . . . 1 . . . . Mask 1 | . . . . . 1 . . . . Tunnel 4 | . 2 . 2 . . . . . . Scanalyzers . | . . . . . . . . . . Garrison Access . | . . . . . . . . . . Data Cores Recovered 1 | . . . 1 . . . . . . Used 1 | . . . 1 . . . . . . Hacking Detections 28 | . 9 . 7 1 11 . . . . Full Trace Events 10 | . 8 . 1 . 1 . . . . Feedback Events . | . . . . . . . . . . Feedback Blocked . | . . . . . . . . . . Robot Schematics Acquired 6 | . 1 . 1 . . . . 4 . Robots Built . | . . . . . . . . . . Authchips . | . . . . . . . . . . Time . | . . . . . . . . . . Total Robot Build Rating . | . . . . . . . . . . Part Schematics Acquired 37 | . . . 4 1 18 . . 14 . Parts Built 8 | . . . . . 8 . . . . Authchips . | . . . . . . . . . . Time 226 | . . . . . 226 . . . . Total Part Build Rating 38 | . . . . . 38 . . . . Parts Repaired . | . . . . . . . . . . Time . | . . . . . . . . . . Parts Recycled . | . . . . . . . . . . Recycled Matter . | . . . . . . . . . . Retrieved Matter 220 | . 220 . . . . . . . . Retrieved Components . | . . . . . . . . . . Parts Scanalyzed 1 | . . . . . 1 . . . . Part Schematics Acquired 1 | . . . . . 1 . . . . Parts Damaged . | . . . . . . . . . . Bothacking | -11 -10 -10 -8 -8 -7 -7 -7 -7 -7 ------------ Run | Yrd Mat Sub Mat Gar Fac Low Low Zio Dee Used RIF Installer . | . . . . . . . . . . Robots Hacked . | . . . . . . . . . . Non-combat . | . . . . . . . . . . Combat . | . . . . . . . . . . Robot Hacks Applied . | . . . . . . . . . . Relay Couplers Released 8 | . . . . 8 . . . . . Machine Destruction 8 | . . . . 8 . . . . . Fabnet Peak Effective % . | . . . . . . . . . . Robots Rewired 8 | . . . . 3 1 . 4 . . Allies Hacked . | . . . . . . . . . . Hacks Repelled . | . . . . . . . . . . Allies | -11 -10 -10 -8 -8 -7 -7 -7 -7 -7 -------- Run | Yrd Mat Sub Mat Gar Fac Low Low Zio Dee Total Allies 9 | . . . 1 3 1 . 4 . . Largest Group 4 | . . . 1 3 1 . 4 4 4 Highest-Rated Group 118 | . . . 10 72 32 . 118 118 118 Highest-Rated Ally 32 | . . . 10 24 32 . 31 31 31 Total Orders 8 | . . . . . . . . 2 6 STAY 3 | . . . . . . . . 1 2 FOLLOW 5 | . . . . . . . . 1 4 Ally Attacks 40 | . . . . 9 2 . . 11 18 Total Damage 1097 | . . . . 245 76 . . 149 627 Kills 8 | . . . . 2 1 . . . 5 Allies Corrupted . | . . . . . . . . . . Allies Melted 1 | . . . . 1 . . . . . Intel | -11 -10 -10 -8 -8 -7 -7 -7 -7 -7 ------- Run | Yrd Mat Sub Mat Gar Fac Low Low Zio Dee Robot Analysis Total 8 | . 3 . 2 . 3 . . . . Derelict Logs Recovered 7 | . . 3 . . . 2 1 1 . Drone Launches . | . . . . . . . . . . Drone Recoveries . | . . . . . . . . . . Exploration | -11 -10 -10 -8 -8 -7 -7 -7 -7 -7 ------------- Run | Yrd Mat Sub Mat Gar Fac Low Low Zio Dee Turns Passed 14911 | 125 1245 1821 1223 1351 2324 938 1310 1128 3446 Spaces Moved 10089 | 47 816 1566 888 927 1344 836 930 995 1740 Core 38 | 38 . . . . . . . . . Treads . | . . . . . . . . . . Legs . | . . . . . . . . . . Wheels 10051 | 9 816 1566 888 927 1344 836 930 995 1740 Hover . | . . . . . . . . . . Flight . | . . . . . . . . . . Fastest Speed 50 | 50 85 90 90 96 96 100 100 100 100 Average Speed 101 | 174 89 90 95 99 108 100 100 106 110 Slowest Speed 250 | 250 90 90 105 120 123 100 100 115 115 Overloaded Moves . | . . . . . . . . . . Propulsion Burnouts . | . . . . . . . . . . Robots Hopped . | . . . . . . . . . . Cave-ins Triggered . | . . . . . . . . . . Exploration Rate (%) 75 | 4 99 84 80 95 42 87 93 84 85 Regions Visited 9 Branch Regions 5 Pre-discovered Areas 8 | . 2 . 2 . . 1 2 1 . Known Exits Taken 8 | 1 1 1 1 . 1 1 1 1 . Unknown Exits Taken . | . . . . . . . . . . Scrap Searched 30 | . . 22 . . . 3 3 2 . Spaces Dug 3 | . . . . . 2 . 1 . . Terrain Destroyed 134 | . 113 1 3 1 13 1 1 . 1 Melee 1 | . . . . . . . 1 . . Projectile 24 | . 4 1 3 1 13 1 . . 1 AOE 109 | . 109 . . . . . . . . Terrain Rammed . | . . . . . . . . . . Walls Destroyed . | . . . . . . . . . . Machines Disabled . | . . . . . . . . . . Actions | -11 -10 -10 -8 -8 -7 -7 -7 -7 -7 --------- Run | Yrd Mat Sub Mat Gar Fac Low Low Zio Dee Total 13692 | 68 1188 1827 1121 1161 2017 908 1212 1035 3155 Wait 2347 | 2 272 156 90 31 468 9 168 13 1138 Move 10081 | 46 815 1565 888 926 1343 835 929 994 1740 Hop . | . . . . . . . . . . Pick Up 45 | 1 5 3 5 3 5 1 1 3 18 Fast Attach 73 | 10 4 3 7 7 16 . 3 4 19 Attach 8 | . . . 5 . 1 . 1 . 1 Detach 5 | . . . 2 . 1 . . . 2 Swap 22 | . 3 . 2 1 10 2 2 1 1 Drop 121 | . 8 4 6 8 19 1 1 8 66 Fire 473 | 9 70 77 70 100 82 29 . . 36 Melee 135 | . . . . . 21 . 48 12 54 Ram . | . . . . . . . . . . Kick . | . . . . . . . . . . Crush . | . . . . . . . . . . Escape Stasis 30 | . . . . 30 . . . . . Rewire 22 | . . . . 4 4 . 14 . . Trap 44 | . . . . . 11 . . . 33 Miscellaneous 286 | . 11 19 46 51 36 31 45 . 47 Route ------- -11/Scrapyard -10/Materials (discovered 5 exits: *Mat x3 / *Min / *Sub) -10/Subcaves (discovered 3 exits: *Mat x2 / *Rec) -8/Materials (discovered 4 exits: *Fac x3 / Gar) -8/Garrison (discovered 3 exits: *Fac x3) -7/Factory (discovered 6 exits: *Fac x4 / *Low x2) -7/Lower Caves -7/Lower Caves (discovered 2 exits: Fac / *Zio) -7/Zion (discovered 2 exits: *Dee / *Pro) -7/Deep Caves (discovered 1 exit: *Pro) History --------- Turn | Location | Event 4 | -11/Scrapyard | Upgraded with Propulsion slot (x1) 4 | -11/Scrapyard | Upgraded with Utility slot (x4) 4 | -11/Scrapyard | Upgraded with Weapon slot (x1) 24 | -11/Scrapyard | Identified exit to Materials 24 | -11/Scrapyard | Discovered exit to Materials (range 15) 126 | -11/Scrapyard | Entered Materials 180 | -10/Materials | Identified exit to Subcaves 180 | -10/Materials | Discovered exit to Subcaves (range 7) 194 | -10/Materials | Identified exit to Mines 194 | -10/Materials | Discovered exit to Mines (range 13) 305 | -10/Materials | Identified exit to Materials 305 | -10/Materials | Discovered exit to Materials (range 7) 318 | -10/Materials | Build established: Hacker-Mutant 364 | -10/Materials | Reached level 2 771 | -10/Materials | Discovered exit to Materials (range 11) 888 | -10/Materials | Discovered exit to Materials (range 16) 1045 | -10/Materials | Reached level 3 1371 | -10/Materials | Entered Subcaves 1522 | -10/Subcaves | Identified exit to Materials 1522 | -10/Subcaves | Discovered exit to Materials (range 11) 1535 | -10/Subcaves | Learned 2 Materials zone layouts 1632 | -10/Subcaves | A Subdweller sparked back to life 1632 | -10/Subcaves | A Subdweller sparked back to life 1632 | -10/Subcaves | A Subdweller sparked back to life 1658 | -10/Subcaves | Found Prototype Processor 1658 | -10/Subcaves | Identified Rainbow Chip 1659 | -10/Subcaves | Attached Rainbow Chip, gained temporary slots: Power, Propulsion, Utility, Weapon 1754 | -10/Subcaves | Learned 2 Materials zone layouts 1756 | -10/Subcaves | A swath of the cavern ceiling suddenly collapsed 1768 | -10/Subcaves | Identified exit to Recycling 1768 | -10/Subcaves | Discovered exit to Recycling (range 14) 1779 | -10/Subcaves | Reached level 4 1951 | -10/Subcaves | Build established: Hacker-Skirmisher 1982 | -10/Subcaves | Visited 4L-MR0's lab 2019 | -10/Subcaves | Found Rainbow Chip 2021 | -10/Subcaves | Attached Rainbow Chip, gained temporary slots: Power, Propulsion, Utility, Weapon 2314 | -10/Subcaves | Discovered exit to Materials (range 9) 2539 | -10/Subcaves | A swath of the cavern ceiling suddenly collapsed 2853 | -10/Subcaves | Ambushed by Subdweller buried in earth 2859 | -10/Subcaves | Core integrity fell below 50% 2901 | -10/Subcaves | Shifting Twisted Machinery released Sub. Machine Gun 3192 | -10/Subcaves | Entered Materials 3193 | -8/Materials | Identified exit to Factory 3193 | -8/Materials | Core integrity fell below 50% 3194 | -8/Materials | Reached level 5 3194 | -8/Materials | Reached level 6 3295 | -8/Materials | Reached level 7 3822 | -8/Materials | Upgraded with Utility slot (x2) 3873 | -8/Materials | Reached level 8 3994 | -8/Materials | Upgraded with Utility slot (x1) 4177 | -8/Materials | Reached level 9 4349 | -8/Materials | Upgraded with Utility slot (x1) 4415 | -8/Materials | Identified exit to Garrison 4415 | -8/Materials | Entered Garrison 4415 | -8/Garrison | Warlord forces raided the area 4426 | -8/Garrison | Spotted B-75 Beast 4445 | -8/Garrison | Warlord forces retreated 4464 | -8/Garrison | Destroyed B-75 Beast 4473 | -8/Garrison | Reached level 10 4482 | -8/Garrison | Lost 6 allies 4570 | -8/Garrison | Garrison Relay disabled 4718 | -8/Garrison | Triggered checkpoint 4790 | -8/Garrison | Discovered exit to Factory (range 12) 4893 | -8/Garrison | Reached level 11 4906 | -8/Garrison | Garrison Relay disabled 4919 | -8/Garrison | Garrison Relay disabled 5006 | -8/Garrison | Triggered checkpoint 5086 | -8/Garrison | Discovered exit to Factory (range 12) 5129 | -8/Garrison | Garrison Relay disabled 5134 | -8/Garrison | Triggered checkpoint 5204 | -8/Garrison | Triggered checkpoint 5296 | -8/Garrison | Discovered exit to Factory (range 10) 5336 | -8/Garrison | Triggered checkpoint 5348 | -8/Garrison | Reached level 12 5366 | -8/Garrison | Garrison Relay disabled 5636 | -8/Garrison | Upgraded with Utility slot (x1) 5654 | -8/Garrison | Upgraded with Weapon slot (x1) 5696 | -8/Garrison | Triggered checkpoint 5766 | -8/Garrison | Entered Factory 5766 | -7/Factory | Accompanied by 1 ally 5768 | -7/Factory | Reached level 13 5908 | -7/Factory | Upgraded with Utility slot (x1) 6006 | -7/Factory | Identified exit to Lower Caves 6006 | -7/Factory | Identified exit to Factory 6167 | -7/Factory | Reached level 14 6442 | -7/Factory | Build established: Wizard-Skirmisher 7458 | -7/Factory | Reached level 15 7464 | -7/Factory | Cargo convoy interrupted 7466 | -7/Factory | Destroyed 7 combat bots 7513 | -7/Factory | Core integrity fell below 50% 7518 | -7/Factory | Garrison activated, responded to threat 7558 | -7/Factory | Found Prototype Processor 7558 | -7/Factory | Identified Exp. Terrain Scan Processor 7567 | -7/Factory | Found Prototype Processor 7567 | -7/Factory | Identified Exp. Signal Interpreter 7581 | -7/Factory | Found Prototype Slashing Weapon 7581 | -7/Factory | Identified Centrium Greatsword 7628 | -7/Factory | Found Rocket Array 7673 | -7/Factory | Fabricated Arm. Huge Wheel (x2) 7679 | -7/Factory | Upgraded with Propulsion slot (x1) 7737 | -7/Factory | Fabricated Adv. Shield Generator (x2) 7784 | -7/Factory | Fabricated Powered Armor? 7840 | -7/Factory | Build established: Wizard-Gladiator 7850 | -7/Factory | Fabricated Adv. Terrain Scanner (x2) 7952 | -7/Factory | Core integrity fell below 20% 7982 | -7/Factory | Upgraded with Power slot (x1) 8090 | -7/Factory | Entered Lower Caves 8096 | -7/Lower Caves | Met a Warlord Commander 8097 | -7/Lower Caves | Learned location of Warlord (-4) 8097 | -7/Lower Caves | Encountered a Warlord checkpoint 8106 | -7/Lower Caves | Found Encrypted Comm Array 8309 | -7/Lower Caves | Ambushed by wild Derelicts 8499 | -7/Lower Caves | Learned 4 Factory zone layouts 8972 | -7/Lower Caves | Identified exit to Lower Caves 8972 | -7/Lower Caves | Discovered exit to Lower Caves (range 9) 9028 | -7/Lower Caves | Entered another Lower Caves area 9038 | -7/Lower Caves | Encountered a Warlord checkpoint 9129 | -7/Lower Caves | Discovered exit to Factory (range 15) 9139 | -7/Lower Caves | Spotted B-75 Beast 9319 | -7/Lower Caves | Destroyed B-75 Beast 9350 | -7/Lower Caves | Reached level 16 9462 | -7/Lower Caves | Attracted the attention of an 0b10 base 9497 | -7/Lower Caves | Learned Extension emergency access door positions 9637 | -7/Lower Caves | Attracted the attention of an 0b10 checkpoint 9667 | -7/Lower Caves | Identified exit to Zion 9667 | -7/Lower Caves | Discovered exit to Zion (range 7) 9725 | -7/Lower Caves | Learned location of Extension (-5) 9802 | -7/Lower Caves | Found Alien Artifact 9802 | -7/Lower Caves | Identified Core Expander 9802 | -7/Lower Caves | Installed Core Expander, added new Weapon slot 10338 | -7/Lower Caves | Entered Zion 10338 | -7/Zion | Accompanied by 4 allies 10404 | -7/Zion | Identified exit to Proximity Caves 10404 | -7/Zion | Discovered exit to Proximity Caves (range 14) 10601 | -7/Zion | Learned Factory stockpile data 10728 | -7/Zion | Found CR-A16's Pointy Stick 10771 | -7/Zion | Given A8's code to call for help 10802 | -7/Zion | Given the Hacking Drone Bay 10805 | -7/Zion | Found Prototype Device 10805 | -7/Zion | Identified Hacking Drone Bay 10845 | -7/Zion | Received a visual enhancement algorithm 10885 | -7/Zion | Found Prototype Device 10885 | -7/Zion | Identified Bomb Factory No. 2 10937 | -7/Zion | Learned Factory emergency access door positions 10980 | -7/Zion | Found Prototype Device 10980 | -7/Zion | Identified Mobile Refinery Mk. CCLXVII 11425 | -7/Zion | Identified exit to Deep Caves 11425 | -7/Zion | Discovered exit to Deep Caves (range 5) 11457 | -7/Zion | Saw the warning signs outside the Deep Caves entrance 11466 | -7/Zion | Entered Deep Caves 11466 | -7/Deep Caves | Accompanied by 4 allies 13141 | -7/Deep Caves | Attacked by Z-Imprinter 13167 | -7/Deep Caves | Lost 3 allies 13188 | -7/Deep Caves | Destroyed Z-Imprinter 13264 | -7/Deep Caves | Found Prototype Device 13264 | -7/Deep Caves | Identified Zio. Metafield Generator 13306 | -7/Deep Caves | Found Prototype Protection 13306 | -7/Deep Caves | Identified Zio. Weapon Casing 13678 | -7/Deep Caves | Found Prototype Protection 13678 | -7/Deep Caves | Identified Zio. Heavy Carapace 13683 | -7/Deep Caves | Z-Facility disabled 14424 | -7/Deep Caves | Identified exit to Proximity Caves 14424 | -7/Deep Caves | Discovered exit to Proximity Caves (range 7) 14789 | -7/Deep Caves | Spotted as-96479 14912 | -7/Deep Caves | Destroyed by as-96479 with Assembled Focal Cannon Last Messages --------------- 14704_ Installed Dirty Bomb Trap. 14741_ Acquired 53 matter. 14742_ Acquired 25 matter. 14800_ as-96479: "DSI9AT1D G8OHIBQ29FWG 26R186 QD12WHW8W33 TDK1 81FTS" 14828_ Destroyed Prototype Device. 14829_ as-96479 GOLEM Unit beginning Prototype Device integration. 14846_ as-96479 Prototype Device integration complete. 14847_ Destroyed Prototype Storage. 14848_ as-96479 GOLEM Unit beginning Prototype Storage integration. 14856_ Destroyed Prototype Device. 14860_ Destroyed Prototype Energy Cannon. 14864_ as-96479 Prototype Storage integration complete. 14865_ as-96479 GOLEM Unit beginning Prototype Device integration. 14866_ as-96479 suffers critical hit (Impale). 14874_ Destroyed Prototype Energy Cannon. 14882_ as-96479 Prototype Device integration complete. 14883_ as-96479 GOLEM Unit beginning Prototype Energy Cannon integration. 14883_ Upgraded: Core Integrity (+150) 14886_ Destroyed Prototype Device. 14909_ Destroyed Prototype Protection. Map ----- +----------------------------------------------------+ | ?????????????? ??? ???##??##### ###### | | ??????????????????? ????? #?#### ####?##?# | | ????????????????????? ?#? #??#### #??#?#??# | | ???????????????? ?? ???? #### ######### | | ?????????????????? ?? ???##?#### ######### | | ????????????????? ?? ? ###### | | ???????????? ? ?? #### | | ?????????? ? ########## | | ????????? g ! [ ########## | | ?????? ?# ? ? s ######## | | ????? ?#? s ###### | | ????"""a? ##### | | ???####?# g ] ! ] ##### | | ??"""?#""" ! ###### | | ??????#""" ] ]] ###### | | ?"?"?"?""" g M ###### ### | | ?"""""?""" ] ] ###### #######? | | "?""?"?""" ] ! ##### ######## | | ?"?"""### ##### ######## | | """""?"?" ! | ##### ######## | | "?""""""" | ##### ##### | | "?"""?""" ! ^ ##### | | """"??"?""" | ^^ ##### | | """"""""" h g | ^ | | """"""??"" G M ####### | | ?"??"??"" @ ############## | | "?"?"""""" ############### | | "?"??"""" # # ############## | | ?""?""""" ##;# #; ## ################ | | """"""?"""" ###### ## ################### | | """"?"?""" ##### ################### | | """""""""##;?############################## | | | | | | | | | | | | | | | | | | | | | | | | | | | | | | | | | | | | | +----------------------------------------------------+ Best States ------------- Heat Dissipation 49 Energy Generation 51 Energy Capacity 550 Matter Stores 300 Matter Capacity 300 Sight Range 17 Robot Scan Range 18 Terrain Scan Range 20 Terrain Scan Density 110 Jamming Range 14 Corruption Block 8 Armor Coverage 1200 Resistance: KI 35 Resistance: TH 35 Resistance: EX 35 Resistance: EM 55 Resistance: I 35 Resistance: S 35 Resistance: P 35 Weapon Shielding 33 Weapon Cycling 15 Evasion (%) 42 Targeting Accuracy 10 Recoil Reduction 4 Offensive Hacking 46 Defensive Hacking 19 Trap Extractor Capacity 4 Item Schematics ----------------- Hacking Suite | -8/Materials | Hacked System Shield | -8/Materials | Hacked Arm. Wheel | -8/Materials | Hacked Shield Generator | -8/Materials | Hacked Arm. Huge Wheel | -8/Garrison | Hacked Imp. Shield Generator | -7/Factory | Hacked Lrn. Tractor Beam | -7/Factory | Hacked Powered Armor | -7/Factory | Hacked Hyb. Deuterium Engine | -7/Factory | Hacked Adv. Signal Interpreter | -7/Factory | Hacked Adv. System Shield | -7/Factory | Hacked Falx | -7/Factory | Hacked Fusion Compressor | -7/Factory | Hacked Cld. Deuterium Engine | -7/Factory | Hacked Hyb. Fission Core | -7/Factory | Hacked Lrn. Missile Launcher | -7/Factory | Hacked KE Penetrator | -7/Factory | Scanalyzed Core Analyzer | -7/Factory | Hacked Force Field | -7/Factory | Hacked Imp. Thermal Generator | -7/Factory | Hacked Lance | -7/Factory | Hacked Adv. Terrain Scanner | -7/Factory | Hacked Adv. Shield Generator | -7/Factory | Hacked Xenon Bombardment Thruster | -7/Zion | Archive Gravmag System | -7/Zion | Archive Mak. Cloaking Device | -7/Zion | Archive Stasis Canceller | -7/Zion | Archive Mak. Spear | -7/Zion | Archive Mni. Drone Bay | -7/Zion | Archive Hyp. Gauss Rifle | -7/Zion | Archive Matter Filter | -7/Zion | Archive Kinecellerator | -7/Zion | Archive Energy Well | -7/Zion | Archive Adv. ECM Suite | -7/Zion | Archive Flexi-carbon Leg | -7/Zion | Archive Hvy. Ion Cannon | -7/Zion | Archive Imp. Coolant Injector | -7/Zion | Archive Robot Schematics ------------------ M-13 Machinist | -10/Materials | Hacked O-24 Administrator | -8/Materials | Hacked B-48 Gladiator | -7/Zion | Archive R-06 Scavenger | -7/Zion | Archive G-47 Trooper | -7/Zion | Archive H-88 Terminator | -7/Zion | Archive Fabricated ------------ Arm. Huge Wheel | x2 | -7/Factory Adv. Shield Generator | x2 | -7/Factory Powered Armor | x2 | -7/Factory Adv. Terrain Scanner | x2 | -7/Factory Alien Tech Used ----------------- Core Expander Achievements -------------- None Challenges ------------ None RPGLIKE | -11 -10 -10 -8 -8 -7 -7 -7 -7 -7 --------- Run | Yrd Mat Sub Mat Gar Fac Low Low Zio Dee Levels Raised 15 | . 2 1 5 3 3 . 1 . . XP Earned 29845 | 6000 3399 1600 7612 4508 4520 532 942 220 512 XP Spent 28395 | 6000 750 . 9600 4020 5855 575 . . 1595 Upgrades 48 | 11 1 . 5 6 18 3 . . 4 Power Slot 1 | . . . . . 1 . . . . Propulsion Slot 2 | 1 . . . . 1 . . . . Utility Slot 10 | 4 . . 4 1 1 . . . . Weapon Slot 2 | 1 . . . 1 . . . . . Core Integrity 11 | . . . . . 8 . . . 3 Heat Dissipation 4 | . . . . 4 . . . . . Inventory Capacity 5 | 2 1 . 1 . . . . . 1 Sight Range 1 | . . . . . . 1 . . . Sensor Range 9 | . . . . . 7 2 . . . Terrain Scan Density 1 | 1 . . . . . . . . . Hack Attack % 1 | 1 . . . . . . . . . Hack Defense % 1 | 1 . . . . . . . . . Protomatter Created 2108 | . 236 55 364 237 368 299 294 . 255 Integrity Restored 5444 | . 169 385 814 965 548 690 863 . 1010 Core 4344 | . 120 315 674 708 363 690 529 . 945 Parts 1100 | . 49 70 140 257 185 . 334 . 65 Protomatter Decayed 776 | . 104 112 4 165 204 69 . . 118 Game ------ Seed MasterPropulsionMeganuke Manual? 0 Play Time 02:31:43 Cumulative 527.8 hours Start 2024.02.01 @ 12:36:48 End 2024.02.01 @ 16:12:30 Sessions 1 Manual Loads 0 Difficulty Explorer Special Mode Winter2019/RPGLIKE Game No. 204 Rogue 185 Adventurer 3 Explorer 16 Win Type - Total 12 Types 8/2/0/1/0/1/0/0/0 Lore% 84 Gallery% 92 Achievement% 81 Wizard Run 0 Options --------- ASCII 0 Keyboard 0 Movement Numpad Keybinds 0 Fullscreen 1 Font 18/SmallcapsGlow Map View 76x50 Zoom Use 0% Tactical HUD 1 Map Filters NONE Filters NONE Steam 1 RUN: c06939b9-acba-4615-900a-1bec006d4b97